Workbook

Sheet data
A1: State | B1: 2000-07-01 | C1: 2001-07-01 | D1: 2002-07-01 | E1: 2003-07-01 | F1: 2004-07-01 | G1: 2005-07-01 | H1: 2006-07-01 | I1: 2007-07-01 | J1: 2008-07-01 | K1: 2009-07-01 | M1: =TEXT(B1,"jj")&"-"&TEXT(C1,"jj") -> 00-01 | N1: =TEXT(C1,"jj")&"-"&TEXT(D1,"jj") -> 01-02 | O1: 02-03 | P1: 03-04 | Q1: 04-05 | R1: 05-06 | S1: 06-07 | T1: 07-08 | U1: 08-09
A2: Alabama | B2: 4451849 | C2: 4464034 | D2: 4472420 | E2: 4490591 | F2: 4512190 | G2: 4545049 | H2: 4597688 | I2: 4637904 | J2: 4677464 | K2: 4708708 | M2: =C2/B2-1 -> 0.002737064981 | N2: =D2/C2-1 -> 0.001878569921 | O2: 0.004062901069 | P2: 0.004809834608 | Q2: 0.007282273131 | R2: 0.01158161331 | S2: 0.008747005016 | T2: 0.008529715147 | U2: 0.006679687968
A3: Alaska | B3: 627499 | C3: 633316 | D3: 642691 | E3: 650884 | F3: 661569 | G3: 669488 | H3: 677325 | I3: 682297 | J3: 688125 | K3: 698473 | M3: =C3/B3-1 -> 0.009270134295 | N3: =D3/C3-1 -> 0.01480303671 | O3: =E3/D3-1 -> 0.01274796131 | P3: =F3/E3-1 -> 0.01641613559 | Q3: =G3/F3-1 -> 0.01197002883 | R3: =H3/G3-1 -> 0.01170596038 | S3: =I3/H3-1 -> 0.007340641494 | T3: =J3/I3-1 -> 0.008541734758 | U3: =K3/J3-1 -> 0.01503796549
A4: Arizona | B4: 5166697 | C4: 5304417 | D4: 5452108 | E4: 5591206 | F4: 5759425 | G4: 5974834 | H4: 6192100 | I4: 6362241 | J4: 6499377 | K4: 6595778 | M4: 0.02665532738 | N4: 0.02784302215 | O4: 0.02551270078 | P4: 0.03008635346 | Q4: 0.03740112945 | R4: 0.03636352073 | S4: 0.02747710793 | T4: 0.02155466918 | U4: 0.0148323447
A5: Arkansas | B5: 2678288 | C5: 2691068 | D5: 2704732 | E5: 2722291 | F5: 2746161 | G5: 2776221 | H5: 2815097 | I5: 2842194 | J5: 2867764 | K5: 2889450 | M5: 0.00477170491 | N5: 0.005077537989 | O5: 0.00649195558 | P5: 0.008768349894 | Q5: 0.01094618997 | R5: 0.01400320796 | S5: 0.009625600823 | T5: 0.008996570959 | U5: 0.007561989062
A6: California | B6: 33994571 | C6: 34485623 | D6: 34876194 | E6: 35251107 | F6: 35558419 | G6: 35795255 | H6: 35979208 | I6: 36226122 | J6: 36580371 | K6: 36961664 | M6: 0.01444501241 | N6: 0.01132561821 | O6: 0.01074982551 | P6: 0.008717797146 | Q6: 0.006660476103 | R6: 0.005139033093 | S6: 0.006862685805 | T6: 0.009778827554 | U6: 0.01042343174
A7: Colorado | B7: 4328070 | C7: 4433068 | D7: 4504265 | E7: 4548775 | F7: 4599681 | G7: 4660780 | H7: 4753044 | I7: 4842259 | J7: 4935213 | K7: 5024748 | M7: 0.02425977399 | N7: 0.0160604349 | O7: 0.009881745412 | P7: 0.01119114487 | Q7: 0.01328331247 | R7: 0.01979582817 | S7: 0.01877007661 | T7: 0.01919641225 | U7: 0.01814207411
A8: Connecticut | B8: 3411726 | C8: 3428433 | D8: 3448382 | E8: 3467673 | F8: 3474610 | G8: 3477416 | H8: 3485162 | I8: 3488633 | J8: 3502932 | K8: 3518288 | M8: 0.004896934865 | N8: 0.005818693263 | O8: 0.00559421781 | P8: 0.002000476977 | Q8: 0.0008075726484 | R8: 0.002227516064 | S8: 0.0009959364873 | T8: 0.004098740108 | U8: 0.004383756236
A9: Delaware | B9: 786411 | C9: 794620 | D9: 804131 | E9: 814905 | F9: 826639 | G9: 839906 | H9: 853022 | I9: 864896 | J9: 876211 | K9: 885122 | M9: 0.01043856202 | N9: 0.01196924316 | O9: 0.01339831445 | P9: 0.01439922445 | Q9: 0.01604932746 | R9: 0.01561603322 | S9: 0.01391992235 | T9: 0.01308249778 | U9: 0.01016992482
A10: District of Columbia | B10: 571744 | C10: 578042 | D10: 579585 | E10: 577777 | F10: 579796 | G10: 582049 | H10: 583978 | I10: 586409 | J10: 590074 | K10: 599657 | M10: 0.01101541949 | N10: 0.002669356206 | O10: -0.003119473416 | P10: 0.003494427781 | Q10: 0.003885849506 | R10: 0.003314153963 | S10: 0.004162828052 | T10: 0.006249904077 | U10: 0.01624033596
A11: Florida | B11: 16047118 | C11: 16353869 | D11: 16680309 | E11: 16981183 | F11: 17375259 | G11: 17783868 | H11: 18088505 | I11: 18277888 | J11: 18423878 | K11: 18537969 | M11: 0.01911564432 | N11: 0.01996102574 | O11: 0.01803767544 | P11: 0.02320662818 | Q11: 0.0235167142 | R11: 0.01712996295 | S11: 0.01046979836 | T11: 0.007987246667 | U11: 0.006192561631
A12: Georgia | B12: 8230161 | C12: 8419594 | D12: 8585535 | E12: 8735259 | F12: 8913676 | G12: 9097428 | H12: 9330086 | I12: 9533761 | J12: 9697838 | K12: 9829211 | M12: 0.02301692519 | N12: 0.01970890758 | O12: 0.0174390996 | P12: 0.02042492386 | Q12: 0.02061461512 | R12: 0.02557404137 | S12: 0.02182991668 | T12: 0.01721010208 | U12: 0.01354662761
A13: Hawaii | B13: 1211566 | C13: 1218305 | D13: 1228069 | E13: 1239298 | F13: 1252782 | G13: 1266117 | H13: 1275599 | I13: 1276832 | J13: 1287481 | K13: 1295178 | M13: 0.005562222776 | N13: 0.008014413468 | O13: 0.009143623037 | P13: 0.01088035323 | Q13: 0.01064431002 | R13: 0.007489039323 | S13: 0.0009666047088 | T13: 0.008340173179 | U13: 0.005978340651
A14: Idaho | B14: 1299551 | C14: 1321170 | D14: 1342149 | E14: 1364109 | F14: 1391718 | G14: 1425862 | H14: 1464413 | I14: 1499245 | J14: 1527506 | K14: 1545801 | M14: 0.01663574573 | N14: 0.01587910716 | O14: 0.01636181974 | P14: 0.02023958496 | Q14: 0.02453370582 | R14: 0.02703697833 | S14: 0.02378563971 | T14: 0.01885015458 | U14: 0.0119770397
A15: Illinois | B15: 12437645 | C15: 12507833 | D15: 12558229 | E15: 12597981 | F15: 12645295 | G15: 12674452 | H15: 12718011 | I15: 12779417 | J15: 12842954 | K15: 12910409 | M15: 0.005643190491 | N15: 0.00402915517 | O15: 0.003165414486 | P15: 0.003755681168 | Q15: 0.002305758782 | R15: 0.003436756082 | S15: 0.00482827071 | T15: 0.00497182305 | U15: 0.005252296317
A16: Indiana | B16: 6091649 | C16: 6124967 | D16: 6149007 | E16: 6181789 | F16: 6214454 | G16: 6253120 | H16: 6301700 | I16: 6346113 | J16: 6388309 | K16: 6423113 | M16: 0.005469454987 | N16: 0.003924919106 | O16: 0.005331267309 | P16: 0.005284069062 | Q16: 0.006221946449 | R16: 0.007768921754 | S16: 0.007047780758 | T16: 0.006649109463 | U16: 0.005448077105
A17: Iowa | B17: 2928184 | C17: 2929424 | D17: 2929264 | E17: 2932799 | F17: 2941358 | G17: 2949450 | H17: 2964391 | I17: 2978719 | J17: 2993987 | K17: 3007856 | M17: 0.0004234706562 | N17: -5.461824577e-05 | O17: 0.00120678778 | P17: 0.002918372517 | Q17: 0.002751110201 | R17: 0.005065690213 | S17: 0.004833370497 | T17: 0.005125693293 | U17: 0.004632284643
A18: Kansas | B18: 2692810 | C18: 2701456 | D18: 2712598 | E18: 2721955 | F18: 2730765 | G18: 2741771 | H18: 2755700 | I18: 2775586 | J18: 2797375 | K18: 2818747 | M18: 0.00321077239 | N18: 0.004124442523 | O18: 0.003449460628 | P18: 0.00323664425 | Q18: 0.004030372441 | R18: 0.005080292993 | S18: 0.007216315274 | T18: 0.007850234149 | U18: 0.007640019661
A19: Kentucky | B19: 4048903 | C19: 4069191 | D19: 4091330 | E19: 4118627 | F19: 4147970 | G19: 4182293 | H19: 4219374 | I19: 4256278 | J19: 4287931 | K19: 4314113 | M19: 0.005010739946 | N19: 0.005440639184 | O19: 0.006671913534 | P19: 0.007124461623 | Q19: 0.00827465001 | R19: 0.008866188954 | S19: 0.008746321137 | T19: 0.007436779271 | U19: 0.006105975119
A20: Louisiana | B20: 4468979 | C20: 4460816 | D20: 4466068 | E20: 4474726 | F20: 4489327 | G20: 4497691 | H20: 4240327 | I20: 4376122 | J20: 4451513 | K20: 4492076 | M20: -0.001826591711 | N20: 0.001177363065 | O20: 0.001938618042 | P20: 0.003262993086 | Q20: 0.001863085491 | R20: -0.05722136092 | S20: 0.03202465282 | T20: 0.01722781038 | U20: 0.009112182757
A21: Maine | B21: 1277211 | C21: 1284791 | D21: 1293938 | E21: 1303102 | F21: 1308253 | G21: 1311631 | H21: 1314963 | I21: 1317308 | J21: 1319691 | K21: 1318301 | M21: 0.005934806387 | N21: 0.007119445887 | O21: 0.007082255873 | P21: 0.003952875523 | Q21: 0.00258206937 | R21: 0.002540348619 | S21: 0.001783320139 | T21: 0.001808992278 | U21: -0.001053276866
A22: Maryland | B22: 5310579 | C22: 5375033 | D22: 5439913 | E22: 5496708 | F22: 5542659 | G22: 5582520 | H22: 5612196 | I22: 5634242 | J22: 5658655 | K22: 5699478 | M22: 0.01213690635 | N22: 0.01207062357 | O22: 0.01044042432 | P22: 0.008359730952 | Q22: 0.00719167461 | R22: 0.00531587885 | S22: 0.003928230589 | T22: 0.004332969723 | U22: 0.007214258512
A23: Massachusetts | B23: 6363015 | C23: 6411730 | D23: 6440978 | E23: 6451637 | F23: 6451279 | G23: 6453031 | H23: 6466399 | I23: 6499275 | J23: 6543595 | K23: 6593587 | M23: 0.007655961836 | N23: 0.00456163937 | O23: 0.001654872909 | P23: -5.548979275e-05 | Q23: 0.0002715740553 | R23: 0.002071584655 | S23: 0.005084127967 | T23: 0.006819222144 | U23: 0.007639837123
A24: Michigan | B24: 9955308 | C24: 10006093 | D24: 10038767 | E24: 10066351 | F24: 10089305 | G24: 10090554 | H24: 10082438 | I24: 10050847 | J24: 10002486 | K24: 9969727 | M24: 0.005101298724 | N24: 0.003265410385 | O24: 0.002747747806 | P24: 0.002280270179 | Q24: 0.0001237944536 | R24: -0.0008043165915 | S24: -0.003133269949 | T24: -0.004811634283 | U24: -0.003275085814
A25: Minnesota | B25: 4933958 | C25: 4982813 | D25: 5017458 | E25: 5047862 | F25: 5079344 | G25: 5106560 | H25: 5148346 | I25: 5191206 | J25: 5230567 | K25: 5266214 | M25: 0.00990178676 | N25: 0.006952899898 | O25: 0.006059642153 | P25: 0.006236699815 | Q25: 0.005358172236 | R25: 0.008182807996 | S25: 0.008325003797 | T25: 0.007582245821 | U25: 0.006815131132
A26: Mississippi | B26: 2848310 | C26: 2853313 | D26: 2858643 | E26: 2867678 | F26: 2886006 | G26: 2900116 | H26: 2897150 | I26: 2921723 | J26: 2940212 | K26: 2951996 | M26: 0.001756480158 | N26: 0.001868003966 | O26: 0.003160590532 | P26: 0.006391233604 | Q26: 0.004889109725 | R26: -0.001022717712 | S26: 0.008481783822 | T26: 0.006328115294 | U26: 0.004007874262
A27: Missouri | B27: 5606065 | C27: 5643986 | D27: 5680852 | E27: 5714847 | F27: 5758444 | G27: 5806639 | H27: 5861572 | I27: 5909824 | J27: 5956335 | K27: 5987580 | M27: 0.006764281185 | N27: 0.006531908477 | O27: 0.005984137591 | P27: 0.007628725668 | Q27: 0.008369448413 | R27: 0.009460378026 | S27: 0.008231921403 | T27: 0.007870115929 | U27: 0.005245675403
A28: Montana | B28: 903293 | C28: 905873 | D28: 909868 | E28: 916750 | F28: 925887 | G28: 934801 | H28: 946230 | I28: 957225 | J28: 968035 | K28: 974989 | M28: 0.002856216089 | N28: 0.004410110468 | O28: 0.00756373452 | P28: 0.009966730297 | Q28: 0.009627524741 | R28: 0.01222613155 | S28: 0.01161979646 | T28: 0.01129306067 | U28: 0.007183624559
A29: Nebraska | B29: 1713345 | C29: 1717948 | D29: 1725083 | E29: 1733680 | F29: 1742184 | G29: 1751721 | H29: 1760435 | I29: 1769912 | J29: 1781949 | K29: 1796619 | M29: 0.002686557582 | N29: 0.004153210691 | O29: 0.004983528329 | P29: 0.004905172812 | Q29: 0.005474163464 | R29: 0.00497453647 | S29: 0.005383328552 | T29: 0.006800903096 | U29: 0.008232558844
A30: Nevada | B30: 2018211 | C30: 2094509 | D30: 2166214 | E30: 2236949 | F30: 2328703 | G30: 2408804 | H30: 2493405 | I30: 2567752 | J30: 2615772 | K30: 2643085 | M30: 0.03780476868 | N30: 0.03423475383 | O30: 0.0326537452 | P30: 0.04101747514 | Q30: 0.0343972589 | R30: 0.03512157901 | S30: 0.02981745846 | T30: 0.01870118298 | U30: 0.01044165929
A31: New Hampshire | B31: 1240446 | C31: 1256879 | D31: 1271163 | E31: 1281871 | F31: 1292766 | G31: 1301415 | H31: 1311894 | I31: 1317343 | J31: 1321872 | K31: 1324575 | M31: 0.01324765447 | N31: 0.01136465801 | O31: 0.008423782001 | P31: 0.008499295171 | Q31: 0.006690305902 | R31: 0.008052004933 | S31: 0.004153536795 | T31: 0.003437980845 | U31: 0.002044827336
A32: New Jersey | B32: 8430921 | C32: 8489469 | D32: 8544115 | E32: 8583481 | F32: 8611530 | G32: 8621837 | H32: 8623721 | I32: 8636043 | J32: 8663398 | K32: 8707739 | M32: 0.006944437031 | N32: 0.006436916137 | O32: 0.004607381806 | P32: 0.003267788442 | Q32: 0.001196883713 | R32: 0.0002185149174 | S32: 0.001428849565 | T32: 0.003167538652 | U32: 0.005118199579
A33: New Mexico | B33: 1820813 | C33: 1828809 | D33: 1850035 | E33: 1869683 | F33: 1891829 | G33: 1916538 | H33: 1942608 | I33: 1968731 | J33: 1986763 | K33: 2009671 | M33: 0.00439144492 | N33: 0.01160646082 | O33: 0.01062033962 | P33: 0.01184478866 | Q33: 0.01306090561 | R33: 0.01360265228 | S33: 0.01344738619 | T33: 0.009159199505 | U33: 0.01153031338
A34: New York | B34: 18998044 | C34: 19088978 | D34: 19161873 | E34: 19231101 | F34: 19297933 | G34: 19330891 | H34: 19356564 | I34: 19422777 | J34: 19467789 | K34: 19541453 | M34: 0.004786492757 | N34: 0.003818695794 | O34: 0.003612799229 | P34: 0.003475204046 | Q34: 0.001707851302 | R34: 0.001328081566 | S34: 0.003420700079 | T34: 0.002317485291 | U34: 0.003783891432
A35: North Carolina | B35: 8079383 | C35: 8203451 | D35: 8316617 | E35: 8416451 | F35: 8531283 | G35: 8669452 | H35: 8866977 | I35: 9064074 | J35: 9247134 | K35: 9380884 | M35: 0.01535612311 | N35: 0.01379492606 | O35: 0.01200415986 | P35: 0.01364375554 | Q35: 0.01619557105 | R35: 0.02278402372 | S35: 0.02222820698 | T35: 0.0201962164 | U35: 0.01446394094
A36: North Dakota | B36: 641200 | C36: 636267 | D36: 633617 | E36: 632809 | F36: 636303 | G36: 635365 | H36: 636771 | I36: 638202 | J36: 641421 | K36: 646844 | M36: -0.007693387399 | N36: -0.004164918187 | O36: -0.00127521831 | P36: 0.005521413254 | Q36: -0.001474140465 | R36: 0.002212901246 | S36: 0.002247275708 | T36: 0.005043857587 | U36: 0.008454665501
A37: Ohio | B37: 11363844 | C37: 11396874 | D37: 11420981 | E37: 11445180 | F37: 11464593 | G37: 11475262 | H37: 11492495 | I37: 11520815 | J37: 11528072 | K37: 11542645 | M37: 0.002906586891 | N37: 0.002115229141 | O37: 0.002118819741 | P37: 0.001696172537 | Q37: 0.0009306043398 | R37: 0.001501752204 | S37: 0.002464216865 | T37: 0.0006299033532 | U37: 0.001264131591
A38: Oklahoma | B38: 3453943 | C38: 3464729 | D38: 3484754 | E38: 3498687 | F38: 3514449 | G38: 3532769 | H38: 3574334 | I38: 3612186 | J38: 3644025 | K38: 3687050 | M38: 0.003122807759 | N38: 0.005779672811 | O38: 0.003998273623 | P38: 0.004505118635 | Q38: 0.005212765927 | R38: 0.0117655584 | S38: 0.01058994487 | T38: 0.008814330159 | U38: 0.01180699913
A39: Oregon | B39: 3430891 | C39: 3470382 | D39: 3517111 | E39: 3550180 | F39: 3573505 | G39: 3617869 | H39: 3677545 | I39: 3732957 | J39: 3782991 | K39: 3825657 | M39: 0.01151042105 | N39: 0.01346508828 | O39: 0.009402319119 | P39: 0.006570089404 | Q39: 0.01241470209 | R39: 0.01649479293 | S39: 0.01506766063 | T39: 0.01340331539 | U39: 0.01127837735
A40: Pennsylvania | B40: 12285504 | C40: 12299533 | D40: 12326302 | E40: 12357524 | F40: 12388368 | G40: 12418161 | H40: 12471142 | I40: 12522531 | J40: 12566368 | K40: 12604767 | M40: 0.001141914894 | N40: 0.002176424097 | O40: 0.002532957573 | P40: 0.002495969257 | Q40: 0.002404917258 | R40: 0.004266412716 | S40: 0.004120633058 | T40: 0.003500650148 | U40: 0.003055695966
A41: Rhode Island | B41: 1050736 | C41: 1058051 | D41: 1066034 | E41: 1071504 | F41: 1071414 | G41: 1064989 | H41: 1060196 | I41: 1055009 | J41: 1053502 | K41: 1053209 | M41: 0.006961786786 | N41: 0.007545004919 | O41: 0.005131168424 | P41: -8.399408682e-05 | Q41: -0.005996748222 | R41: -0.004500515968 | S41: -0.004892491577 | T41: -0.001428423833 | U41: -0.0002781200226
A42: South Carolina | B42: 4023570 | C42: 4062701 | D42: 4103934 | E42: 4146474 | F42: 4201306 | G42: 4256199 | H42: 4339399 | I42: 4424232 | J42: 4503280 | K42: 4561242 | M42: 0.009725442828 | N42: 0.01014915939 | O42: 0.01036566378 | P42: 0.01322376554 | Q42: 0.01306569909 | R42: 0.01954795817 | S42: 0.01954948139 | T42: 0.0178670558 | U42: 0.01287106287
A43: South Dakota | B43: 755694 | C43: 758983 | D43: 762107 | E43: 766975 | F43: 774283 | G43: 780084 | H43: 788519 | I43: 797035 | J43: 804532 | K43: 812383 | M43: 0.004352290742 | N43: 0.004116034219 | O43: 0.006387554504 | P43: 0.009528341863 | Q43: 0.007492092684 | R43: 0.01081293809 | S43: 0.01079999341 | T43: 0.0094061114 | U43: 0.009758468277
A44: Tennessee | B44: 5703243 | C44: 5755443 | D44: 5803306 | E44: 5856522 | F44: 5916762 | G44: 5995748 | H44: 6089453 | I44: 6172862 | J44: 6240456 | K44: 6296254 | M44: 0.009152687339 | N44: 0.008316127881 | O44: 0.009169945545 | P44: 0.01028596836 | Q44: 0.01334953138 | R44: 0.01562857545 | S44: 0.0136972894 | T44: 0.0109501881 | U44: 0.008941333774
A45: Texas | B45: 20945963 | C45: 21332847 | D45: 21710788 | E45: 22057801 | F45: 22418319 | G45: 22801920 | H45: 23369024 | I45: 23837701 | J45: 24304290 | K45: 24782302 | M45: 0.01847057593 | N45: 0.01771638825 | O45: 0.01598343644 | P45: 0.0163442403 | Q45: 0.01711105101 | R45: 0.02487088807 | S45: 0.02005548028 | T45: 0.01957357381 | U45: 0.0196678035
A46: Utah | B46: 2244314 | C46: 2291250 | D46: 2334473 | E46: 2379938 | F46: 2438915 | G46: 2499637 | H46: 2583724 | I46: 2663796 | J46: 2727343 | K46: 2784572 | M46: 0.02091329466 | N46: 0.01886437534 | O46: 0.01947548762 | P46: 0.02478089765 | Q46: 0.02489713664 | R46: 0.03363968448 | S46: 0.03099092628 | T46: 0.02385580577 | U46: 0.02098342599
A47: Vermont | B47: 609903 | C47: 612153 | D47: 614950 | E47: 616559 | F47: 618145 | G47: 618814 | H47: 619985 | I47: 620460 | J47: 621049 | K47: 621760 | M47: 0.003689111219 | N47: 0.004569119158 | O47: 0.002616472884 | P47: 0.002572341009 | Q47: 0.001082270341 | R47: 0.001892329521 | S47: 0.0007661475681 | T47: 0.0009492956838 | U47: 0.001144837203
A48: Virginia | B48: 7104533 | C48: 7191304 | D48: 7283541 | E48: 7373694 | F48: 7468914 | G48: 7563887 | H48: 7646996 | I48: 7719749 | J48: 7795424 | K48: 7882590 | M48: 0.01221346991 | N48: 0.01282618563 | O48: 0.01237763335 | P48: 0.01291347322 | Q48: 0.01271577099 | R48: 0.01098760465 | S48: 0.009513932007 | T48: 0.009802779857 | U48: 0.01118168813
A49: Washington | B49: 5911122 | C49: 5987785 | D49: 6056187 | E49: 6113262 | F49: 6184289 | G49: 6261282 | H49: 6372243 | I49: 6464979 | J49: 6566073 | K49: 6664195 | M49: 0.01296928062 | N49: 0.01142358986 | O49: 0.009424246642 | P49: 0.01161851071 | Q49: 0.01244977394 | R49: 0.01772177008 | S49: 0.01455311732 | T49: 0.01563717376 | U49: 0.01494378756
A50: West Virginia | B50: 1806962 | C50: 1798582 | D50: 1799411 | E50: 1802238 | F50: 1803302 | G50: 1803920 | H50: 1807237 | I50: 1811198 | J50: 1814873 | K50: 1819777 | M50: -0.004637618279 | N50: 0.000460918657 | O50: 0.001571069644 | P50: 0.0005903770756 | Q50: 0.0003427046607 | R50: 0.001838773338 | S50: 0.002191743529 | T50: 0.00202904376 | U50: 0.002702117448
A51: Wisconsin | B51: 5374254 | C51: 5408769 | D51: 5446766 | E51: 5476796 | F51: 5511385 | G51: 5541443 | H51: 5571680 | I51: 5601571 | J51: 5627610 | K51: 5654774 | M51: 0.006422286702 | N51: 0.007025073543 | O51: 0.005513363343 | P51: 0.006315553838 | Q51: 0.00545380154 | R51: 0.005456520982 | S51: 0.005364809178 | T51: 0.004648517353 | U51: 0.004826915867
A52: Wyoming | B52: 493958 | C52: 492982 | D52: 497069 | E52: 499189 | F52: 502988 | G52: 506242 | H52: 512841 | I52: 523414 | J52: 532981 | K52: 544270 | M52: -0.001975876492 | N52: 0.008290363543 | O52: 0.004265001438 | P52: 0.007610343978 | Q52: 0.006469339229 | R52: 0.01303526772 | S52: 0.02061652637 | T52: 0.01827807434 | U52: 0.02118086761
M54: =MAX(M$2:M$52) -> 0.03780476868 | N54: =MAX(N$2:N$52) -> 0.03423475383 | O54: 0.0326537452 | P54: 0.04101747514 | Q54: 0.03740112945 | R54: 0.03636352073 | S54: 0.03202465282 | T54: 0.02385580577 | U54: 0.02118086761
M55: =INDEX($A$2:$A$52,MATCH(M54,M$2:M$52,0)) -> Nevada | N55: =INDEX($A$2:$A$52,MATCH(N54,N$2:N$52,0)) -> Nevada | O55: Nevada | P55: Nevada | Q55: Arizona | R55: Arizona | S55: Louisiana | T55: Utah | U55: Wyoming
M57: =MIN(M$2:M$52) -> -0.007693387399 | N57: =MIN(N$2:N$52) -> -0.004164918187 | O57: -0.003119473416 | P57: -8.399408682e-05 | Q57: -0.005996748222 | R57: -0.05722136092 | S57: -0.004892491577 | T57: -0.004811634283 | U57: -0.003275085814
M58: =INDEX($A$2:$A$52,MATCH(M57,M$2:M$52,0)) -> North Dakota | N58: =INDEX($A$2:$A$52,MATCH(N57,N$2:N$52,0)) -> North Dakota | O58: District of Columbia | P58: Rhode Island | Q58: Rhode Island | R58: Louisiana | S58: Rhode Island | T58: Michigan | U58: Michigan
